Workbook

Sheet Gas
A1: Fuel | B1: SGi | C1: ni (mol) | D1: yi (ni/100) | E1: SG-in-mixture
A2: Methane | B2: 0.554 | C2: 92.74 | D2: =C2/100 -> 0.9274 | E2: =D2*B2 -> 0.5137796
A3: Ethane | B3: 1.0494 | C3: 4.07 | D3: =C3/100 -> 0.0407 | E3: =D3*B3 -> 0.04271058
A4: Propane | B4: 1.5625 | C4: 0.77 | D4: 0.0077 | E4: 0.01203125
A5: Butane | B5: 2.085 | C5: 0.14 | D5: 0.0014 | E5: 0.002919
A6: N2 | B6: 0.9674 | C6: 0.45 | D6: 0.0045 | E6: 0.0043533
A7: CO2 | B7: 1.5291 | C7: 1.83 | D7: 0.0183 | E7: 0.02798253
B8: Total | C8: =SUM(C2:C7) -> 100 | D8: =SUM(D2:D7) -> 1 | E8: =SUM(E2:E7) -> 0.60377626

Sheet LPG
A1: Fuel | B1: SGi | C1: ni (mol) | D1: yi (ni/100) | E1: SG-in-mixture
A2: Methane | B2: 0.554 | C2: 0 | D2: =C2/100 -> 0 | E2: =D2*B2 -> 0
A3: Ethane | B3: 1.0494 | C3: 0 | D3: =C3/100 -> 0 | E3: =D3*B3 -> 0
A4: Propane | B4: 1.5625 | C4: 30 | D4: 0.3 | E4: 0.46875
A5: Butane | B5: 2.085 | C5: 70 | D5: 0.7 | E5: 1.4595
A6: N2 | B6: 0.9674 | C6: 0 | D6: 0 | E6: 0
A7: CO2 | B7: 1.5291 | C7: 0 | D7: 0 | E7: 0
B8: Total | C8: =SUM(C2:C7) -> 100 | D8: =SUM(D2:D7) -> 1 | E8: =SUM(E2:E7) -> 1.92825

Sheet CV
A1: Fuel | B1: netCV | C1: ni | D1: yi | E1: yiCVi
A2: CH4 | B2: 8561 | C2: 30 | D2: =C2/100 -> 0.3 | E2: =D2*B2 -> 2568.3
A3: C3H8 | B3: 21809 | C3: 70 | D3: =C3/100 -> 0.7 | E3: =D3*B3 -> 15266.3
D4: mix-CV | E4: =SUM(E2:E3) -> 17834.6
A7: Fuel | B7: netCV | C7: ni | D7: yi | E7: yiCVi | H7: Fuel | I7: netCV | J7: ni | K7: yi | L7: yiCVi
A8: CH4 | B8: 8561 | C8: 30 | D8: =C8/100 -> 0.3 | E8: =D8*B8 -> 2568.3 | H8: CH4 | I8: 8561 | J8: 30 | K8: =J8/SUM(J8:J11) -> 0.25 | L8: =K8*I8 -> 2140.25
A9: C3H8 | B9: 21809 | C9: 60 | D9: =C9/100 -> 0.6 | E9: =D9*B9 -> 13085.4 | H9: C3H8 | I9: 21809 | J9: 70 | K9: =J9/SUM(J8:J11) -> 0.5833333333 | L9: =K9*I9 -> 12721.91667
A10: N2 | B10: 0 | C10: 5 | D10: 0.05 | E10: 0 | H10: N2 | I10: 0 | J10: 10 | K10: =J10/SUM(J8:J11) -> 0.08333333333 | L10: 0
A11: CO2 | B11: 0 | C11: 5 | D11: 0.05 | E11: 0 | H11: CO2 | I11: 0 | J11: 10 | K11: =J11/SUM(J8:J11) -> 0.08333333333 | L11: 0
D12: CV-mix | E12: =SUM(E8:E11) -> 15653.7 | K12: =SUM(K8:K11) -> 1 | L12: =SUM(L8:L11) -> 14862.16667

Sheet WI
A1: Fuel | B1: SG | C1: NCV | D1: WI | E1: %var
A2: Methane | B2: 0.554 | C2: 8561 | D2: =C2/SQRT(B2) -> 11501.90072
A3: Ethane | B3: 1.0494 | C3: 15235 | D3: =C3/SQRT(B3) -> 14872.08739 | E3: =ABS(D3-D4)/D4*100 -> 14.75946062
A4: Propane | B4: 1.5625 | C4: 21809 | D4: 17447.2 | E4: =ABS(D4-D5)/D5*100 -> 11.13603113
A5: Butane | B5: 2.085 | C5: 28350 | D5: 19633.60429

Sheet SFL
A1: Fuel | B1: x | C1: y | D1: z | E1: vol% in fuel | F1: a | G1: SFL-i | H1: yi/SFL-i
A2: C2H4 | B2: 2 | C2: 4 | D2: 0 | E2: 10 | F2: =B2+C2/4-D2/2 -> 3 | G2: =1/(1+F2*4.76)*100 -> 6.544502618 | H2: =E2/G2 -> 1.528
A3: CH4 | B3: 1 | C3: 4 | D3: 0 | E3: 50 | F3: =B3+C3/4-D3/2 -> 2 | G3: =1/(1+F3*4.76)*100 -> 9.505703422 | H3: =E3/G3 -> 5.26
A4: C2H6 | B4: 2 | C4: 6 | D4: 0 | E4: 20 | F4: =B4+C4/4-D4/2 -> 3.5 | G4: =1/(1+F4*4.76)*100 -> 5.662514156 | H4: 3.532
A5: H2 | B5: 0 | C5: 2 | D5: 0 | E5: 10 | F5: =B5+C5/4-D5/2 -> 0.5 | G5: =1/(1+F5*4.76)*100 -> 29.58579882 | H5: 0.338
A6: CO | B6: 1 | C6: 0 | D6: 1 | E6: 10 | F6: =B6+C6/4-D6/2 -> 0.5 | G6: =1/(1+F6*4.76)*100 -> 29.58579882 | H6: 0.338
G7: SFL-mix | H7: =100/SUM(H2:H6) -> 9.094216079
